Cogmind - Beta 16 @@@ ROGUE MODE // 2025.11.16 @ 11:39:05 Player: oshi0ne1 Result: Destroyed by D-53 Grenadier with Mini Grenade Launcher Performance ------------- Evolutions (1) 500 Regions Visited (3) 600 Robots Destroyed (17) 85 Value Destroyed (508) 508 Prototype IDs (1) 20 Alien Tech Used (0) 0 Bonus (0) 0 TOTAL SCORE: 1713 Bonus ------- None Cogmind --------- Core Integrity 0/400 Matter 13/300 Energy 100/100 System Corruption 0% Temperature Cool (0) Movement Core (700) Ox13 Location -9/Mines Parts ------- > --- POWER (1) -------- (None) > --- PROPULSION (2) --- (None) > --- UTILITY (4) ------ High-capacity Storage Unit Visual Processing Unit Signal Interpreter > --- WEAPON (2) ------- (None) > --- INVENTORY (20) --- Ion Engine Ion Engine Ion Engine Aluminum Leg Compact Wheel Compact Wheel Small Laser Small Laser Small Laser Light Cannon Datajack Mining Claw Peak State ------------ > --- POWER ------------ Improved Ion Engine > --- PROPULSION ------- Aluminum Leg Aluminum Leg > --- UTILITY ---------- High-capacity Storage Unit Visual Processing Unit Signal Interpreter Splice Drone Bay > --- WEAPON ----------- Light Cannon Light Cannon > --- INVENTORY -------- Ion Engine Ion Engine Ion Engine Aluminum Leg Compact Wheel Compact Wheel Sensor Array Small Laser Small Laser Small Laser Light Cannon Datajack Mining Claw [Rating: 18] Favorites ----------- Power Ion Engine Engine Ion Engine Power Core Light Nuclear Core Propulsion Aluminum Leg Leg Aluminum Leg Wheel Compact Wheel Utility High-capacity Storage Unit Device Sensor Array Storage High-capacity Storage Unit Processor Visual Processing Unit Weapon Light Cannon Energy Gun Small Laser Ballistic Gun Assault Rifle Ballistic Cannon Light Cannon Launcher Mini Grenade Launcher Build | -11 -10 -9 -9 ------- Run | Yrd Mat Mat Min Slots Evolved 2 | . . 2 . Power . | . . . . Propulsion . | . . . . Utility 2 | . . 2 . Weapon . | . . . . Parts Attached 27 | 5 16 3 3 Power 5 | 1 3 1 . Engine 4 | 1 2 1 . Core 1 | . 1 . . Reactor . | . . . . Propulsion 7 | 2 5 . . Treads . | . . . . Leg 5 | . 5 . . Wheel 2 | 2 . . . Hover . | . . . . Flight . | . . . . Utility 6 | 1 2 2 1 Device 2 | . 1 . 1 Storage 2 | 1 1 . . Processor 2 | . . 2 . Hackware . | . . . . Protection . | . . . . Artifact . | . . . . Weapon 9 | 1 6 . 2 Energy Gun 4 | . 4 . . Energy Cannon . | . . . . Ballistic Gun 1 | 1 . . . Ballistic Cannon 3 | . 2 . 1 Launcher 1 | . . . 1 Special Weapon . | . . . . Impact Weapon . | . . . . Slashing Weapon . | . . . . Piercing Weapon . | . . . . Special Melee Weapon . | . . . . Unidentified Prototypes 1 | . . . 1 Parts Lost 13 | . 5 . 8 Power 2 | . 1 . 1 Propulsion 4 | . 2 . 2 Utility 2 | . . . 2 Weapon 5 | . 2 . 3 Highest Loss Streak 5 | . 2 . 5 To Critical Strikes . | . . . . Average Backups 8 | 3 6 11 12 Power 2 | . 2 3 3 Propulsion 2 | 1 1 2 3 Utility . | . . . . Weapon 3 | 1 2 5 4 Tool/Special . | . . . . Unused Backups 6 | . . . 6 Power 2 | . . . 2 Propulsion 2 | . . . 2 Utility . | . . . . Weapon 1 | . . . 1 Tool/Special 1 | . . . 1 Average Slot Usage (%) 96 | . 97 98 89 Engine 9 | . 9 11 7 Core 2 | . 4 . . Leg 21 | . 21 22 19 Wheel 2 | . 5 . . Device 11 | . 12 11 9 Storage 12 | . 14 11 11 Processor 9 | . . 20 22 Energy Gun 6 | . 11 . . Ballistic Gun 3 | . 6 . . Ballistic Cannon 14 | . 9 22 19 Peak Build Rating 18 | 5 9 12 18 Average Rating 9 | 4 7 11 13 On Entrance 6 | . 5 8 12 Avg Prop Armor Cover (%) . | . . . . Naked Turns . | . . . . Heaviest Build 61 | 12 52 54 61 Greatest Support 26 | 26 26 20 20 Greatest Overweight (x) 14 | . 4 2 14 Average Overweight (x) 1 | . 1 2 2 Largest Inventory Capacity 20 | 8 20 20 20 Average Capacity 19 | 7 19 20 20 Most Carried 14 | 5 14 12 13 Average Carried 8 | 3 6 11 12 Final Capacity 20 | 8 20 20 20 Final Carried 12 | 5 12 12 12 Class Distribution -------------------- 63% | Mutant 20% | Skirmisher 8% | Scavenger-Skirmisher 6% | Scavenger-Mutant Dominant Class ---------------- Mutant | -10/Materials Skirmisher | -9/Materials Mutant | -9/Mines Resources | -11 -10 -9 -9 ----------- Run | Yrd Mat Mat Min Matter Collected 536 | 230 265 . 41 Remotely . | . . . . Salvage Created 664 | . 464 167 33 Parts 42 | . 30 8 4 Haulers Intercepted . | . . . . Recyclers Shooed . | . . . . Parts Field Recycled . | . . . . Retrieved Matter . | . . . . Parts Self-Destructed . | . . . . Prevented . | . . . . Parts Restored . | . . . . Kills | -11 -10 -9 -9 ------- Run | Yrd Mat Mat Min Combat Hostiles Destroyed 18 | . 11 2 5 Guns 8 | . 8 . . Cannons 10 | . 3 2 5 Classes Destroyed 8 | . 4 2 2 Builder 1 | . . . 1 Recycler 1 | . . 1 . Operator 1 | . 1 . . Watcher 1 | . 1 . . Swarmer 1 | . 1 . . Grunt 11 | . 10 1 . Sentry 1 | . . 1 . Assembled 5 | . . . 5 Best Kill Streak 5 | . 2 3 5 Combat Bots Only 5 | . 2 2 5 Max Kills in Single Turn 2 | . 1 2 1 Gunslinging . | . . . . Exploded . | . . . . Melee . | . . . . Uniques/NPCs Destroyed . | . . . . Combat | -11 -10 -9 -9 -------- Run | Yrd Mat Mat Min Hostile Shots Fired 141 | . 93 7 41 Missed 31 | . 24 . 7 Hits 110 | . 69 7 34 Melee 3 | . . . 3 Projectile 107 | . 69 7 31 AOE 23 | . . . 23 Critical Strikes 2 | . 1 1 . Part Disruptions 1 | . . . 1 Damage Taken 2130 | . 843 104 1183 Core 571 | . 169 16 386 Absorbed by Shields . | . . . . Core Remaining (%) 66 | 100 32 . . Volleys Fired 74 | . 46 5 23 Largest 2 | . 2 2 2 Hottest 80 | . 80 60 60 Shots Fired 144 | . 90 10 44 Gun 72 | . 72 . . Cannon 70 | . 18 10 42 Launcher 2 | . . . 2 Special . | . . . . Kinetic 93 | . 41 10 42 Thermal 41 | . 41 . . Explosive 2 | . . . 2 Electromagnetic 8 | . 8 . . Robot Hit Streak 8 | . 8 6 5 Robot Miss Streak 4 | . 4 2 4 Penetration Max . | . . . . Secondary Targets 1 | . 1 . . Max Gunslinging Chain 1 | . 1 . . Shots Hit Robots 83 | . 51 6 26 Core Hits 42 | . 23 3 16 Critical Kills . | . . . . Critical Parts Destroyed . | . . . . Critical Strikes 4 | . 2 . 2 Blast 4 | . 2 . 2 Melee Attacks . | . . . . Impact . | . . . . Slashing . | . . . . Piercing . | . . . . Sneak Attacks . | . . . . Combat Hostiles . | . . . . Follow-up Attacks . | . . . . Damage Inflicted 1345 | . 654 142 549 Guns 483 | . 483 . . Cannons 740 | . 171 142 427 Explosions 122 | . . . 122 Melee . | . . . . Ramming . | . . . . Kinetic 885 | . 316 142 427 Thermal 303 | . 303 . . Explosive 122 | . . . 122 Electromagnetic 35 | . 35 . . Impact . | . . . . Slashing . | . . . . Piercing . | . . . . Highest Corruption 1 | . 1 . . Average Corruption 1 | . 1 . . Corruption Purged . | . . . . Corruption Blocked . | . . . . Effects 9 | . 9 . . Message Errors 2 | . 2 . . Matter Fused 2 | . 2 . . Energy Discharges 1 | . 1 . . Data Loss (minor) 2 | . 2 . . Data Loss (major) 1 | . 1 . . Alerts 1 | . 1 . . Overload Shots . | . . . . Overflow Damage 15 | . . . 15 Projectiles 15 | . . . 15 Explosions . | . . . . Melee . | . . . . Knockbacks 7 | . . . 7 Impact . | . . . . Kinetic 7 | . . . 7 Secondary . | . . . . Self-Inflicted Damage . | . . . . Shots . | . . . . Rammed . | . . . . Targets Rammed . | . . . . Kicked . | . . . . Crushed . | . . . . Highest Temperature 156 | . 156 28 46 Average Temperature 48 | . 54 23 24 Received Heat Transfer 500 | . 369 51 80 Siege Activations . | . . . . Martial Activations . | . . . . Shielding Activations . | . . . . Robots Disrupted . | . . . . Combat Hostiles . | . . . . Robots Corrupted . | . . . . Combat Hostiles . | . . . . Parts Fried . | . . . . Impact Corruptions . | . . . . Robots Melted . | . . . . Combat Hostiles . | . . . . Parts Melted . | . . . . Heat Transferred 675 | . 675 . . Parts Sabotaged . | . . . . Parts Stolen . | . . . . Parts Stripped . | . . . . Power Chain Reactions . | . . . . Alert | -11 -10 -9 -9 ------- Run | Yrd Mat Mat Min Maximum Alert Level . | . . . . Low Security (%) 100 | 100 100 100 100 Level 1 . | . . . . Level 2 . | . . . . Level 3 . | . . . . Level 4 . | . . . . Level 5 . | . . . . High Security . | . . . . Max Security . | . . . . Peak Influence 81 | . 81 45 . Initial 26 | . . 26 . Average 23 | . 40 11 . Influence Increases 433 | . 369 55 9 Destroy 0b10 Robot/C 260 | . 220 40 . Destroy 0b10 Robot/NC 20 | . 10 5 5 Destroy Leader 72 | . 62 10 . Disable Machine 15 | . 15 . . Destroy Structure 6 | . 2 . 4 Lose Combat Pursuer 60 | . 60 . . Influence Decreases 433 | . 305 119 9 Entered New Map 38 | . . 38 . Time Decay 336 | . 255 81 . Lost Part 59 | . 50 . 9 Squads Dispatched 3 | . 3 . . Investigation 2 | . 2 . . Extermination . | . . . . Reinforcement 1 | . 1 . . Assault . | . . . . Garrison . | . . . . Intercept . | . . . . Searches Triggered . | . . . . Construction Impeded . | . . . . Haulers Reinforced . | . . . . Active Scanning Responses . | . . . . Cargo Convoy Interrupts . | . . . . Stealth | -11 -10 -9 -9 --------- Run | Yrd Mat Mat Min Distress Signals 4 | . 3 1 . Communications Jammed . | . . . . Distress Signals . | . . . . Times Spotted 37 | . 21 5 11 Peak Tracking Total 7 | . 4 4 7 Tactical Retreats 4 | . 3 . 1 Traps | -11 -10 -9 -9 ------- Run | Yrd Mat Mat Min Traps Triggered 2 | . 2 . . Indirectly . | . . . . Trap Hack Attempts . | . . . . Triggered . | . . . . Disarmed . | . . . . Reprogrammed . | . . . . Reused . | . . . . Traps Extracted . | . . . . Installed . | . . . . Triggered . | . . . . Machines | -11 -10 -9 -9 ---------- Run | Yrd Mat Mat Min Machines Disabled 1 | . 1 . . Max in Single Turn 1 | . 1 . . Machines Repaired . | . . . . Machines Dismantled . | . . . . Machines Sabotaged . | . . . . Overloaded Fab Kills . | . . . . Hacking | -11 -10 -9 -9 --------- Run | Yrd Mat Mat Min Machines Accessed 3 | . 2 . 1 Terminals 2 | . 2 . . Fabricators . | . . . . Repair Stations . | . . . . Recycling Units . | . . . . Scanalyzers . | . . . . Garrison Access . | . . . . Total Hacks 7 | . 6 . 1 Successful 2 | . 1 . 1 Failed 5 | . 5 . . Catastrophic 3 | . 3 . . Database Lockouts . | . . . . Manual . | . . . . Terminals 6 | . 6 . . Fabricators . | . . . . Repair Stations . | . . . . Recycling Units . | . . . . Scanalyzers . | . . . . Garrison Access . | . . . . Terminal Hacks 2 | . 1 . 1 Open Door 1 | . . . 1 Emergency Access Points 1 | . 1 . . Fabricator Hacks . | . . . . Repair Station Hacks . | . . . . Recycling Unit Hacks . | . . . . Scanalyzer . | . . . . Garrison Access Hacks . | . . . . Unauthorized Hacks . | . . . . Terminals . | . . . . Fabricators . | . . . . Repair Stations . | . . . . Recycling Units . | . . . . Scanalyzers . | . . . . Garrison Access . | . . . . Data Cores Recovered . | . . . . Used . | . . . . Hacking Detections 2 | . 2 . . Full Trace Events 1 | . 1 . . Feedback Events . | . . . . Feedback Blocked . | . . . . Robot Schematics Acquired . | . . . . Robots Built . | . . . . Authchips . | . . . . Time . | . . . . Total Robot Build Rating . | . . . . Part Schematics Acquired . | . . . . Parts Built . | . . . . Authchips . | . . . . Time . | . . . . Total Part Build Rating . | . . . . Part Studies Acquired . | . . . . Parts Repaired . | . . . . Time . | . . . . Parts Recycled . | . . . . Recycled Matter . | . . . . Retrieved Matter . | . . . . Retrieved Components . | . . . . Parts Scanalyzed . | . . . . Part Schematics Acquired . | . . . . Parts Damaged . | . . . . Bothacking | -11 -10 -9 -9 ------------ Run | Yrd Mat Mat Min Used RIF Installer . | . . . . Robots Hacked . | . . . . Non-combat . | . . . . Combat . | . . . . Robot Hacks Applied . | . . . . Relay Couplers Released . | . . . . Fabnet Peak Effective % . | . . . . Robots Rewired . | . . . . Allies Hacked . | . . . . Hacks Repelled . | . . . . Allies | -11 -10 -9 -9 -------- Run | Yrd Mat Mat Min Total Allies . | . . . . Largest Group . | . . . . Highest-Rated Group . | . . . . Highest-Rated Ally . | . . . . Total Orders . | . . . . Ally Attacks 2 | . . . 2 Total Damage 12 | . . . 12 Kills . | . . . . Allies Corrupted . | . . . . Allies Melted . | . . . . Intel | -11 -10 -9 -9 ------- Run | Yrd Mat Mat Min Active Infowar (turns) 1185 | . 616 324 245 Optics 569 | . . 324 245 Sensors 1028 | . 616 324 88 Robot Analysis Total . | . . . . Derelict Logs Recovered . | . . . . Drone Launches 2 | . . . 2 Drone Recoveries 2 | . . . 2 Exploration | -11 -10 -9 -9 ------------- Run | Yrd Mat Mat Min Turns Passed 1309 | 60 680 324 245 Spaces Moved 464 | 53 243 117 51 Core 2 | 1 . . 1 Treads . | . . . . Legs 318 | . 151 117 50 Wheels 144 | 52 92 . . Hover . | . . . . Flight . | . . . . Fastest Speed 50 | 50 90 260 260 Average Speed 214 | 89 203 260 288 Slowest Speed 750 | 100 400 260 750 Overloaded Moves . | . . . . Propulsion Burnouts . | . . . . Robots Hopped . | . . . . Potential Cave-ins . | . . . . Cave-ins Triggered . | . . . . Exploration Rate (%) 25 | 3 54 21 23 Regions Visited 3 Branch Regions 1 Pre-discovered Areas . | . . . . Known Exits Taken 1 | . . 1 . Unknown Exits Taken 2 | 1 1 . . Scrap Searched . | . . . . Spaces Dug . | . . . . Terrain Destroyed 15 | . . . 15 Melee . | . . . . Projectile . | . . . . AOE 15 | . . . 15 Terrain Rammed . | . . . . Walls Destroyed . | . . . . Machines Disabled . | . . . . Actions | -11 -10 -9 -9 --------- Run | Yrd Mat Mat Min Total 632 | 62 339 128 103 Wait 36 | . 13 1 22 Move 461 | 52 242 116 51 Hop . | . . . . Pick Up 25 | 5 16 2 2 Fast Attach 6 | 5 1 . . Attach 12 | . 8 2 2 Detach 1 | . 1 . . Swap 11 | . 7 1 3 Drop 6 | . 5 1 . Fire 74 | . 46 5 23 Melee . | . . . . Ram . | . . . . Kick . | . . . . Crush . | . . . . Escape Stasis . | . . . . Rewire . | . . . . Trap . | . . . . Miscellaneous . | . . . . Route ------- -11/Scrapyard -10/Materials -9/Materials -9/Mines History --------- Turn | Location | Event 17 | -11/Scrapyard | Discovered new exit (range 16) 61 | -11/Scrapyard | Entered Materials 282 | -10/Materials | Core integrity fell below 50% 320 | -10/Materials | Build established: Mutant 686 | -10/Materials | Discovered new exit (range 14) 741 | -10/Materials | Entered another Materials area 741 | -9/Materials | Evolved 2 slots: Utility x2 1049 | -9/Materials | Discovered new exit (range 6) 1060 | -9/Materials | Identified exit to Mines 1065 | -9/Materials | Entered Mines 1066 | -9/Mines | Assembled infested the area 1072 | -9/Mines | Found the Drone Emporium 1084 | -9/Mines | Found Prototype Device 1085 | -9/Mines | Identified Splice Drone Bay 1289 | -9/Mines | Core integrity fell below 50% 1293 | -9/Mines | Core integrity fell below 20% 1310 | -9/Mines | Destroyed by D-53 Grenadier with Mini Grenade Launcher Last Messages --------------- R-06 Scavenger destroyed. The unstable cave ceiling collapses. Structural Scanner crushed. Mni. Grenade Launcher destroyed. The unstable cave ceiling collapses. D-53 Grenadier knocked back. Aluminum Leg destroyed. The unstable cave ceiling collapses. Lgt. Cannon destroyed. The unstable cave ceiling collapses. U-05 Engineer lays Concrete. The unstable cave ceiling collapses. U-05 Engineer lays Concrete. The unstable cave ceiling collapses. U-05 Engineer lays Concrete. The unstable cave ceiling collapses. U-05 Engineer lays Concrete. The unstable cave ceiling collapses. U-05 Engineer destroyed. The unstable cave ceiling collapses. Map ----- +----------------------------------------------------+ | ?????????????????????????????????????????????????? | | ?????????????????????????????????????????????????? | | ?????????????????????????????????????????????????? | | ?????????????????????????????????????????????????? | | ?????????????????????????????????????????????????? | | ?????????????????????????????????????????????????? | | ?????????????????????????????????????????????????? | | ?????????????????????????????????????????????????? | | ?????????????????????####????????????????????????? | | ??????????????????+## #?????????????????????### | | ?????????????????? ##??????????????????##"" | | ????????????? # ??? ??????????????????#" | | ???????????? ?? ??????????????????#" | | ???????????? ?? ??????????????????## | | ???????????? ?? ??????????????????### | | ?????????????# ?? ??????????######### | | ?????????????# ? =* ##?????????# | | ?????????????? ##%d #?????????#%####### | | ??????????????? # # ##????????# #?????# | | ????????????????? # #????????# #?????# | | ??????????????????# =[ #????????#%#?????# | | ??????????????????# # ## ##??###### #?????# | | ???????????????????# # #?## ####### | | ????????????????????# # #### % ##### | | ????????????????????# ## # # ### #???? | | ????????????????????## @ ## # #???????? | | ????????????????????# # #???????? | | ??????????????????# # #???????? | | ????????????????# = # # #???????? | | ????????????? ## # < ##???????? | | ??????????? ## # ##????????? | | ?????????? ## ## ## ##?????????? | | ?????????? #?## ### ###??????????? | | ??????????? ????## ###??####????????????? | | ??????????? ??????## ##????????????????????? | | ????????????###????????#####?????????????????????? | | ?????????????????????????????????????????????????? | | ?????????????????????????????????????????????????? | | ?????????????????????????????????????????????????? | | | | | | | | | | | | | | | | | | | | | | | +----------------------------------------------------+ Best States ------------- Heat Dissipation 28 Energy Generation 14 Energy Capacity 265 Matter Stores 300 Matter Capacity 300 Sight Range 18 Robot Scan Range 14 Terrain Scan Density 10 Evasion (%) 42 Item Schematics ----------------- None Robot Schematics ------------------ None Fabricated ------------ Nothing Repaired ---------- Nothing Studied --------- None Alien Tech Used ----------------- None Achievements -------------- None Challenges ------------ None Game ------ Seed NodeHardcellThruster Manual? 0 Play Time 00:14:00 Cumulative 11.2 hours Start 2025.11.16 @ 11:27:47 End 2025.11.16 @ 11:39:05 Sessions 1 Manual Loads 0 Difficulty Rogue Special Mode None Game No. 22 Rogue 1 Adventurer 21 Explorer 0 Win Type - Total 0 Types 0/0/0/0/0/0/0/0/0/0 Lore% 9 Gallery% 17 Achievement% 14 Wizard Run 0 Options --------- Layout 1 ASCII 0 Keyboard 0 Movement Mouse Keybinds 0 Fullscreen 1 Font 24/X11 Map View 50x35 Zoom Use 0% Tactical HUD 0 Map Filters NONE Filters NONE Steam 1 RUN: c7cb17a4-d621-4cdd-86d7-96cc0e5b6b04